Workbook

Sheet Simulador
A2: CALCULADORA DE CONTRIBUIÇÃO BÁSICA
A4: Para calcular a rentabilidade basta preencher os campos em azul
B9: Salário mensal | C9: 10000
B10: 7 URP's em 2025 | C10: 4183.2
B11: 10 URP's em 2025 | C11: 5976
B13: Percentual de Contribuição | C13: 0.01
B14: Desconto em Folha | C14: =IF(AND(C9<=C11,C9>=C10),C9*C13,(C9-C11)*C13) -> 40.24
B15: Aporte Patrocinadora | C15: =C14 -> 40.24
B16: Aporte Mensal | C16: =C15+C14 -> 80.48
B18: Rentabilidade Nominal Anual | C18: 0.1
B19: Rentabilidade Equivalente Mensal | C19: =((1+C18)^(1/12)-1) -> 0.007974140429
B21: Simulado em | C21: =NOW() -> 2025-11-03T13:47:48.750
B25: A Contribuição Básica é voltada para os profissionais com salário de contribuição maior que 7 URPs e que tenham aderido ao plano;
B26: Caso o salário seja maior que 10 URP's (R$ 5.976,00), escolha um percentual entre 1% e 11% (número inteiro). O cálculo da contribuição pode ser obtido com a fórmula: ((Salário de Contribuição - 10 URP’s) x Percentual de 1% à 11%);
B27: Caso o salário seja entre 7 e 10 URP's (R$ 4.183,20 a R$ 5.976,00), será calculado 1% (número inteiro). O cálculo da contribuição pode ser obtido com a fórmula: (Salário de Contribuição X 1%);
B28: O valor será descontado mensalmente em folha de pagamento. O Participante poderá alterar o percentual de contribuição durante as campanhas semestrais, atualmente em Junho e Dezembro;
B29: Mensalmente a Patrocinadora efetuará a contrapartida da Contribuição Básica em 100% ;
B30: A URP é reajustada anualmente em janeiro, conforme variação do INPC acumulada nos últimos 12 meses;
B31: Rentabilidade simulada não é garantia de rentabilidade futura, que vai depender do perfil de investimento escolhido e do desempenho dos gestores;
B32: O Benefício de Aposentadoria da Ultraprev será pago de acordo com as regras previstas em Regulamento, disponível em www.ultraprev.com.br/DocRegulamento.aspx;
B33: Os valores apresentados são uma simulação e não são garantias de reserva e benefício futuro.

Sheet Calculo (hidden)
B5: Ano | C5: 1 | D5: 5 | E5: 10 | F5: 15 | G5: 20 | H5: 25 | I5: 30
B6: Patrimonio | C6: =FV(Simulador!$C$19,(12*Calculo!C5),(Simulador!$C$16),0,0)*-1 -> 1009.262387 | D6: =FV(Simulador!$C$19,(12*Calculo!D5),(Simulador!$C$16),0,0)*-1 -> 6161.647796 | E6: =FV(Simulador!$C$19,(12*Calculo!E5),(Simulador!$C$16),0,0)*-1 -> 16085.04319 | F6: =FV(Simulador!$C$19,(12*Calculo!F5),(Simulador!$C$16),0,0)*-1 -> 32066.7707 | G6: =FV(Simulador!$C$19,(12*Calculo!G5),(Simulador!$C$16),0,0)*-1 -> 57805.50268 | H6: =FV(Simulador!$C$19,(12*Calculo!H5),(Simulador!$C$16),0,0)*-1 -> 99257.98791 | I6: =FV(Simulador!$C$19,(12*Calculo!I5),(Simulador!$C$16),0,0)*-1 -> 166017.6299
B8: . | C8: =C9/I6 -> 0.5
B9: Participante | C9: =I6/2 -> 83008.81496
B11: . | C11: =C12/I6 -> 0.5
B12: Patrocinadora | C12: =I6/2 -> 83008.81496
B15: Contribuição Básica s/ Patrocinadora | E15: Contribuição Básica c/ Patrocinadora
B16: Percentual | C16: Valor da Contribuição Básica Mensal | E16: Percentual | F16: Valor da Contribuição Básica Mensal
B17: 0.01 | C17: 0.01 | E17: 0.01 | F17: =((F$10-F$11)*E17) -> 0
B18: 0.02 | E18: 0.02 | F18: 0
B19: 0.03 | E19: 0.03 | F19: 0
B20: 0.04 | E20: 0.04 | F20: 0
B21: 0.05 | E21: 0.05 | F21: 0
B22: 0.06 | E22: 0.06 | F22: 0
B23: 0.07 | E23: 0.07 | F23: 0
B24: 0.08 | E24: 0.08 | F24: 0
B25: 0.09 | E25: 0.09 | F25: 0
B26: 0.1 | E26: 0.1 | F26: 0
B27: 0.11 | E27: 0.11 | F27: 0
